[Event "Titled Tuesday Blitz February 21 Late 2023"]
[White "Salimova, Nurgyul"]
[Black "Sztokbant, Bernardo Vainzoff"]
[WhiteFideId "2915138"]
[BlackFideId "2115956"]
[WhiteElo "2391"]
[BlackElo "2213"]
[Result "1-0"]
[Round "09"]
[TimeControl "180+2"]
[Date "2023.02.21"]
[WhiteClock "0:00:04"]
[BlackClock "0:00:01"]

1. d4 {[%clk 0:02:58]}  d5 {[%clk 0:03:00]} 2. Nf3 {[%clk 0:02:58]}  Nf6 {[%clk 0:02:59]} 3. c4 {[%clk 0:02:58]}  e6 {[%clk 0:02:58]} 4. g3 {[%clk 0:02:58]}  Be7 {[%clk 0:02:58]} 5. Bg2 {[%clk 0:02:58]}  O-O {[%clk 0:02:58]} 6. O-O {[%clk 0:02:59]}  dxc4 {[%clk 0:02:59]} 7. Qc2 {[%clk 0:02:59]}  a6 {[%clk 0:02:58]} 8. a4 {[%clk 0:02:57]}  Bd7 {[%clk 0:02:58]} 9. Rd1 {[%clk 0:02:57]}  Bc6 {[%clk 0:02:58]} 10. Bg5 {[%clk 0:02:57]}  Nbd7 {[%clk 0:02:57]} 11. Qxc4 {[%clk 0:02:54]}  Nb6 {[%clk 0:02:55]} 12. Qc2 {[%clk 0:02:51]}  Be4 {[%clk 0:02:49]} 13. Qc1 {[%clk 0:02:48]}  a5 {[%clk 0:02:44]} 14. Nc3 {[%clk 0:02:46]}  Bc6 {[%clk 0:02:44]} 15. Bxf6 {[%clk 0:02:36]}  Bxf6 {[%clk 0:02:45]} 16. e4 {[%clk 0:02:36]}  Qe8 {[%clk 0:02:05]} 17. Qc2 {[%clk 0:02:32]}  Be7 {[%clk 0:01:58]} 18. d5 {[%clk 0:02:21]}  Bd7 {[%clk 0:01:52]} 19. Nd4 {[%clk 0:02:05]}  exd5 {[%clk 0:01:47]} 20. exd5 {[%clk 0:02:03]}  Bf6 {[%clk 0:01:34]} 21. Ndb5 {[%clk 0:01:58]}  Qd8 {[%clk 0:01:28]} 22. Ne4 {[%clk 0:01:55]}  Bxb5 {[%clk 0:01:18]} 23. axb5 {[%clk 0:01:56]}  Be5 {[%clk 0:01:01]} 24. h4 {[%clk 0:01:56]}  Qd7 {[%clk 0:00:54]} 25. Ng5 {[%clk 0:01:46]}  g6 {[%clk 0:00:53]} 26. h5 {[%clk 0:01:16]}  Qxb5 {[%clk 0:00:45]} 27. hxg6 {[%clk 0:01:14]}  hxg6 {[%clk 0:00:46]} 28. Qe4 {[%clk 0:01:08]}  Bf6 {[%clk 0:00:41]} 29. Ne6 {[%clk 0:00:45]}  fxe6 {[%clk 0:00:29]} 30. Qxg6+ {[%clk 0:00:45]}  Bg7 {[%clk 0:00:26]} 31. Bh3 {[%clk 0:00:41]}  Rf6 {[%clk 0:00:24]} 32. Bxe6+ {[%clk 0:00:39]}  Kf8 {[%clk 0:00:24]} 33. Qh7 {[%clk 0:00:36]}  Bh6 {[%clk 0:00:12]} 34. Re1 {[%clk 0:00:24]}  Qxb2 {[%clk 0:00:09]} 35. Qh8+ {[%clk 0:00:08]}  Ke7 {[%clk 0:00:10]} 36. Bf5+ {[%clk 0:00:08]}  Kd6 {[%clk 0:00:05]} 37. Re6+ {[%clk 0:00:08]}  Kc5 {[%clk 0:00:01]} 38. Qxf6 {[%clk 0:00:09]}  Qxf6 {[%clk 0:00:01]} 39. Rxf6 {[%clk 0:00:10]}  Bg7 {[%clk 0:00:02]} 40. Rc1+ {[%clk 0:00:10]}  Kb4 {[%clk 0:00:01]} 41. Rf7 {[%clk 0:00:10]}  Be5 {[%clk 0:00:01]} 42. f4 {[%clk 0:00:05]}  Bd6 {[%clk 0:00:01]} 43. Rb1+ {[%clk 0:00:04]}  Kc3 {[%clk 0:00:01]} 44. Kf2 {[%clk 0:00:02]}  a4 {[%clk 0:00:01]} 45. Rh7 {[%clk 0:00:03]}  a3 {[%clk 0:00:01]} 46. Rhh1 {[%clk 0:00:04]}  a2 {[%clk 0:00:01]} 47. Rhc1+ {[%clk 0:00:04]} 1-0


[Site "https://www.chess.com"]

[Event "Titled Tuesday Blitz February 21 Late 2023"]
[White "Zochowski, Kacper"]
[Black "Timmermans, Mark"]
[WhiteFideId "1125494"]
[BlackFideId "1026399"]
[WhiteElo "2262"]
[BlackElo "2392"]
[Result "0-1"]
[Round "09"]
[TimeControl "180+2"]
[Date "2023.02.21"]
[WhiteClock "0:00:10"]
[BlackClock "0:00:15"]

1. Nf3 {[%clk 0:02:54]}  Nf6 {[%clk 0:02:54]} 2. c4 {[%clk 0:02:55]}  e6 {[%clk 0:02:50]} 3. g3 {[%clk 0:02:54]}  d5 {[%clk 0:02:49]} 4. Bg2 {[%clk 0:02:55]}  Be7 {[%clk 0:02:48]} 5. O-O {[%clk 0:02:55]}  O-O {[%clk 0:02:49]} 6. b3 {[%clk 0:02:56]}  b6 {[%clk 0:02:46]} 7. Bb2 {[%clk 0:02:56]}  Bb7 {[%clk 0:02:40]} 8. e3 {[%clk 0:02:55]}  Nbd7 {[%clk 0:02:40]} 9. Nc3 {[%clk 0:02:55]}  dxc4 {[%clk 0:02:40]} 10. bxc4 {[%clk 0:02:55]}  c5 {[%clk 0:02:41]} 11. Qe2 {[%clk 0:02:55]}  Rc8 {[%clk 0:02:32]} 12. d3 {[%clk 0:02:54]}  Qc7 {[%clk 0:02:32]} 13. Ne1 {[%clk 0:02:49]}  Rfd8 {[%clk 0:02:29]} 14. f4 {[%clk 0:02:46]}  Bxg2 {[%clk 0:02:05]} 15. Nxg2 {[%clk 0:02:47]}  Nb8 {[%clk 0:02:01]} 16. g4 {[%clk 0:02:46]}  Nc6 {[%clk 0:02:01]} 17. g5 {[%clk 0:02:46]}  Ne8 {[%clk 0:02:02]} 18. Ne4 {[%clk 0:02:23]}  Qb7 {[%clk 0:01:57]} 19. Rab1 {[%clk 0:02:19]}  Nb4 {[%clk 0:01:56]} 20. Nf2 {[%clk 0:02:15]}  Nxa2 {[%clk 0:01:55]} 21. Bxg7 {[%clk 0:02:12]}  Nxg7 {[%clk 0:01:54]} 22. Qxa2 {[%clk 0:02:12]}  Nf5 {[%clk 0:01:46]} 23. Qe2 {[%clk 0:02:01]}  Bf8 {[%clk 0:01:38]} 24. Rfd1 {[%clk 0:01:53]}  Bg7 {[%clk 0:01:37]} 25. Ne4 {[%clk 0:01:49]}  Rc7 {[%clk 0:01:35]} 26. Qg4 {[%clk 0:01:28]}  Qc6 {[%clk 0:01:25]} 27. Ng3 {[%clk 0:01:06]}  Qxg2+ {[%clk 0:01:14]} 28. Kxg2 {[%clk 0:01:04]}  Nxe3+ {[%clk 0:01:15]} 29. Kf3 {[%clk 0:01:04]}  Nxg4 {[%clk 0:01:16]} 30. Kxg4 {[%clk 0:01:05]}  Rcd7 {[%clk 0:01:14]} 31. Rb3 {[%clk 0:01:03]}  h6 {[%clk 0:01:07]} 32. h4 {[%clk 0:00:55]}  f5+ {[%clk 0:01:07]} 33. gxf6 {[%clk 0:00:53]}  Bxf6 {[%clk 0:01:07]} 34. Ra3 {[%clk 0:00:46]}  Kf7 {[%clk 0:01:04]} 35. Ne4 {[%clk 0:00:45]}  Rg8+ {[%clk 0:01:04]} 36. Kf3 {[%clk 0:00:45]}  a5 {[%clk 0:01:00]} 37. Rb3 {[%clk 0:00:45]}  Bd8 {[%clk 0:01:00]} 38. Nf2 {[%clk 0:00:40]}  Rd4 {[%clk 0:00:56]} 39. Ng4 {[%clk 0:00:39]}  Rh8 {[%clk 0:00:47]} 40. Ne5+ {[%clk 0:00:39]}  Kf6 {[%clk 0:00:48]} 41. Nc6 {[%clk 0:00:39]}  Rd6 {[%clk 0:00:46]} 42. Ne5 {[%clk 0:00:39]}  Bc7 {[%clk 0:00:46]} 43. Rg1 {[%clk 0:00:38]}  Rdd8 {[%clk 0:00:36]} 44. Rg6+ {[%clk 0:00:35]}  Kf5 {[%clk 0:00:36]} 45. Rg7 {[%clk 0:00:20]}  Bxe5 {[%clk 0:00:33]} 46. fxe5 {[%clk 0:00:21]}  a4 {[%clk 0:00:29]} 47. Rxb6 {[%clk 0:00:20]}  Rxd3+ {[%clk 0:00:28]} 48. Ke2 {[%clk 0:00:21]}  Rb3 {[%clk 0:00:26]} 49. Ra6 {[%clk 0:00:21]}  Rb4 {[%clk 0:00:25]} 50. Re7 {[%clk 0:00:17]}  Rxc4 {[%clk 0:00:22]} 51. Rexe6 {[%clk 0:00:18]}  Rg8 {[%clk 0:00:19]} 52. Rxh6 {[%clk 0:00:16]}  Rg2+ {[%clk 0:00:17]} 53. Kd3 {[%clk 0:00:16]}  Rd4+ {[%clk 0:00:17]} 54. Kc3 {[%clk 0:00:16]}  Rg3+ {[%clk 0:00:16]} 55. Kb2 {[%clk 0:00:15]}  Rb4+ {[%clk 0:00:14]} 56. Kc2 {[%clk 0:00:16]}  Kxe5 {[%clk 0:00:14]} 57. Rhb6 {[%clk 0:00:11]}  Rc4+ {[%clk 0:00:13]} 58. Kb2 {[%clk 0:00:11]}  Kd5 {[%clk 0:00:14]} 59. Rd6+ {[%clk 0:00:10]}  Ke4 {[%clk 0:00:13]} 60. Re6+ {[%clk 0:00:11]}  Kd3 {[%clk 0:00:12]} 61. Red6+ {[%clk 0:00:11]}  Rd4 {[%clk 0:00:12]} 62. h5 {[%clk 0:00:10]}  Rg2+ {[%clk 0:00:12]} 63. Ka3 {[%clk 0:00:10]}  Rh2 {[%clk 0:00:12]} 64. h6 {[%clk 0:00:10]}  Kc4 {[%clk 0:00:11]} 65. Rxa4+ {[%clk 0:00:09]}  Kc3 {[%clk 0:00:11]} 66. Raxd4 {[%clk 0:00:09]}  cxd4 {[%clk 0:00:12]} 67. Rc6+ {[%clk 0:00:08]}  Kd2 {[%clk 0:00:12]} 68. Kb4 {[%clk 0:00:09]}  d3 {[%clk 0:00:13]} 69. Re6 {[%clk 0:00:09]}  Rh4+ {[%clk 0:00:13]} 70. Kc5 {[%clk 0:00:09]}  Kc2 {[%clk 0:00:14]} 71. Rd6 {[%clk 0:00:02]}  d2 {[%clk 0:00:14]} 72. Kc6 {[%clk 0:00:03]}  Rxh6 {[%clk 0:00:15]} 73. Rxh6 {[%clk 0:00:02]}  d1=Q {[%clk 0:00:15]} 74. Rd6 {[%clk 0:00:03]}  Qf3+ {[%clk 0:00:15]} 75. Kc7 {[%clk 0:00:04]}  Kc3 {[%clk 0:00:15]} 76. Rc6+ {[%clk 0:00:04]}  Kd4 {[%clk 0:00:15]} 77. Rd6+ {[%clk 0:00:04]}  Kc5 {[%clk 0:00:15]} 78. Rd7 {[%clk 0:00:05]}  Qf6 {[%clk 0:00:15]} 79. Kc8 {[%clk 0:00:06]}  Kc6 {[%clk 0:00:14]} 80. Rc7+ {[%clk 0:00:06]}  Kb6 {[%clk 0:00:15]} 81. Rd7 {[%clk 0:00:05]}  Qe6 {[%clk 0:00:14]} 82. Kd8 {[%clk 0:00:05]}  Qg8+ {[%clk 0:00:12]} 83. Ke7 {[%clk 0:00:05]}  Kc6 {[%clk 0:00:13]} 84. Rd6+ {[%clk 0:00:06]}  Kc7 {[%clk 0:00:13]} 85. Rd7+ {[%clk 0:00:06]}  Kc8 {[%clk 0:00:14]} 86. Rd6 {[%clk 0:00:07]}  Qg7+ {[%clk 0:00:14]} 87. Ke6 {[%clk 0:00:07]}  Kc7 {[%clk 0:00:14]} 88. Rd5 {[%clk 0:00:07]}  Qg4+ {[%clk 0:00:12]} 89. Ke5 {[%clk 0:00:07]}  Kc6 {[%clk 0:00:12]} 90. Rd6+ {[%clk 0:00:08]}  Kc5 {[%clk 0:00:12]} 91. Rd5+ {[%clk 0:00:08]}  Kc4 {[%clk 0:00:12]} 92. Rd6 {[%clk 0:00:09]}  Qg3+ {[%clk 0:00:13]} 93. Ke6 {[%clk 0:00:09]}  Kc5 {[%clk 0:00:13]} 94. Rd5+ {[%clk 0:00:09]}  Kc6 {[%clk 0:00:14]} 95. Re5 {[%clk 0:00:10]}  Qg6+ {[%clk 0:00:15]} 96. Ke7 {[%clk 0:00:10]}  Qd6+ {[%clk 0:00:15]} 0-1


[Site "https://www.chess.com"]

[Event "Titled Tuesday Blitz February 21 Late 2023"]
[White "Averjanov, Alexey"]
[Black "Mazurkiewicz, Michal"]
[WhiteFideId "14109867"]
[BlackFideId "1124943"]
[WhiteElo "2399"]
[BlackElo "2145"]
[Result "1-0"]
[Round "09"]
[TimeControl "180+2"]
[Date "2023.02.21"]
[WhiteClock "0:01:07"]
[BlackClock "0:00:04"]

1. d4 {[%clk 0:03:00]}  Nf6 {[%clk 0:02:59]} 2. c4 {[%clk 0:03:01]}  e5 {[%clk 0:02:59]} 3. dxe5 {[%clk 0:03:00]}  Ng4 {[%clk 0:02:59]} 4. Nf3 {[%clk 0:03:00]}  Bc5 {[%clk 0:02:58]} 5. e3 {[%clk 0:02:59]}  Nc6 {[%clk 0:02:59]} 6. b3 {[%clk 0:02:59]}  O-O {[%clk 0:02:53]} 7. Bb2 {[%clk 0:02:58]}  Re8 {[%clk 0:02:54]} 8. Be2 {[%clk 0:02:56]}  a5 {[%clk 0:02:53]} 9. Nc3 {[%clk 0:02:54]}  Ncxe5 {[%clk 0:02:51]} 10. Nxe5 {[%clk 0:02:54]}  Nxe5 {[%clk 0:02:52]} 11. O-O {[%clk 0:02:53]}  Ra6 {[%clk 0:02:52]} 12. Nd5 {[%clk 0:02:53]}  Rh6 {[%clk 0:02:51]} 13. Nf4 {[%clk 0:02:53]}  d6 {[%clk 0:02:41]} 14. Bd4 {[%clk 0:02:50]}  Bxd4 {[%clk 0:01:35]} 15. Qxd4 {[%clk 0:02:51]}  Qg5 {[%clk 0:00:33]} 16. g3 {[%clk 0:02:37]}  Bg4 {[%clk 0:00:27]} 17. Qd1 {[%clk 0:02:29]}  Bxe2 {[%clk 0:00:24]} 18. Qxe2 {[%clk 0:02:30]}  c6 {[%clk 0:00:24]} 19. Rad1 {[%clk 0:02:26]}  Qf6 {[%clk 0:00:24]} 20. h4 {[%clk 0:02:23]}  g5 {[%clk 0:00:23]} 21. hxg5 {[%clk 0:02:20]}  Qxg5 {[%clk 0:00:24]} 22. Kg2 {[%clk 0:02:17]}  Qf5 {[%clk 0:00:22]} 23. Rh1 {[%clk 0:02:14]}  Rxh1 {[%clk 0:00:13]} 24. Rxh1 {[%clk 0:02:15]}  Qe4+ {[%clk 0:00:14]} 25. f3 {[%clk 0:02:14]}  Qf5 {[%clk 0:00:13]} 26. Rh5 {[%clk 0:02:08]}  Qf6 {[%clk 0:00:12]} 27. Qc2 {[%clk 0:02:01]}  Ng6 {[%clk 0:00:10]} 28. Kf2 {[%clk 0:01:55]}  Qe7 {[%clk 0:00:09]} 29. Qd3 {[%clk 0:01:50]}  Qf6 {[%clk 0:00:08]} 30. Rf5 {[%clk 0:01:45]}  Qb2+ {[%clk 0:00:07]} 31. Ne2 {[%clk 0:01:39]}  Ne5 {[%clk 0:00:08]} 32. Qxd6 {[%clk 0:01:36]}  Ng6 {[%clk 0:00:03]} 33. Qd7 {[%clk 0:01:32]}  Rf8 {[%clk 0:00:03]} 34. Qxb7 {[%clk 0:01:29]}  Ne5 {[%clk 0:00:04]} 35. e4 {[%clk 0:01:16]}  Nd3+ {[%clk 0:00:04]} 36. Ke3 {[%clk 0:01:15]}  Ne1 {[%clk 0:00:04]} 37. Qxc6 {[%clk 0:01:09]}  Qc3+ {[%clk 0:00:04]} 38. Nxc3 {[%clk 0:01:07]} 1-0


[Site "https://www.chess.com"]

[Event "Titled Tuesday Blitz February 21 Late 2023"]
[White "Koutlas, Nikolaos"]
[Black "Thomforde-Toates, Noah"]
[WhiteFideId "25827138"]
[BlackFideId "30951992"]
[WhiteElo "2341"]
[BlackElo "2124"]
[Result "1-0"]
[Round "09"]
[TimeControl "180+2"]
[Date "2023.02.21"]
[WhiteClock "0:01:25"]
[BlackClock "0:00:15"]

1. Nf3 {[%clk 0:03:00]}  Nf6 {[%clk 0:02:59]} 2. g3 {[%clk 0:02:59]}  b5 {[%clk 0:02:58]} 3. Bg2 {[%clk 0:03:00]}  Bb7 {[%clk 0:02:58]} 4. O-O {[%clk 0:03:00]}  g6 {[%clk 0:02:56]} 5. a4 {[%clk 0:03:01]}  b4 {[%clk 0:02:55]} 6. a5 {[%clk 0:03:01]}  Na6 {[%clk 0:02:54]} 7. d4 {[%clk 0:03:00]}  Bg7 {[%clk 0:02:54]} 8. c4 {[%clk 0:02:56]}  bxc3 {[%clk 0:02:51]} 9. Nxc3 {[%clk 0:02:56]}  O-O {[%clk 0:02:49]} 10. Re1 {[%clk 0:02:56]}  e6 {[%clk 0:02:47]} 11. e4 {[%clk 0:02:56]}  c5 {[%clk 0:02:40]} 12. d5 {[%clk 0:02:55]}  exd5 {[%clk 0:02:36]} 13. exd5 {[%clk 0:02:54]}  Nb4 {[%clk 0:02:36]} 14. d6 {[%clk 0:02:46]}  Re8 {[%clk 0:02:30]} 15. Be3 {[%clk 0:02:45]}  Qc8 {[%clk 0:02:17]} 16. Rc1 {[%clk 0:02:40]}  c4 {[%clk 0:02:17]} 17. Nb5 {[%clk 0:02:39]}  Nd3 {[%clk 0:02:16]} 18. Nc7 {[%clk 0:02:34]}  Nxc1 {[%clk 0:02:00]} 19. Qxc1 {[%clk 0:02:29]}  Re6 {[%clk 0:01:51]} 20. Qxc4 {[%clk 0:02:03]}  Rxd6 {[%clk 0:01:48]} 21. Ne5 {[%clk 0:02:03]}  Re6 {[%clk 0:01:43]} 22. Nxe6 {[%clk 0:01:54]}  Bxg2 {[%clk 0:00:55]} 23. Nxg7 {[%clk 0:01:40]}  Bd5 {[%clk 0:00:41]} 24. Qh4 {[%clk 0:01:39]}  Qc2 {[%clk 0:00:33]} 25. Qxf6 {[%clk 0:01:33]}  Qe4 {[%clk 0:00:30]} 26. f3 {[%clk 0:01:32]}  Qb4 {[%clk 0:00:30]} 27. Nd3 {[%clk 0:01:29]}  Qb3 {[%clk 0:00:20]} 28. Nf5 {[%clk 0:01:25]}  gxf5 {[%clk 0:00:16]} 29. Bh6 {[%clk 0:01:25]}  Qxd3 {[%clk 0:00:15]} 30. Qg7# {[%clk 0:01:25]} 1-0


[Site "https://www.chess.com"]

[Event "Titled Tuesday Blitz February 21 Late 2023"]
[White "Becerra, Juan David"]
[Black "Solon, Nathan"]
[WhiteFideId "4404998"]
[BlackFideId "2017229"]
[WhiteElo "2382"]
[BlackElo "2306"]
[Result "0-1"]
[Round "09"]
[TimeControl "180+2"]
[Date "2023.02.21"]
[WhiteClock "0:00:16"]
[BlackClock "0:00:18"]

1. d4 {[%clk 0:03:00]}  Nf6 {[%clk 0:02:59]} 2. c4 {[%clk 0:03:00]}  c5 {[%clk 0:02:59]} 3. dxc5 {[%clk 0:02:59]}  e6 {[%clk 0:02:59]} 4. Be3 {[%clk 0:02:54]}  Na6 {[%clk 0:02:52]} 5. a3 {[%clk 0:02:54]}  Nxc5 {[%clk 0:02:48]} 6. b4 {[%clk 0:02:53]}  Nce4 {[%clk 0:02:48]} 7. f3 {[%clk 0:02:50]}  Nd6 {[%clk 0:02:48]} 8. c5 {[%clk 0:02:39]}  Nf5 {[%clk 0:02:44]} 9. Bf2 {[%clk 0:02:38]}  d5 {[%clk 0:02:14]} 10. cxd6 {[%clk 0:02:38]}  Bxd6 {[%clk 0:02:14]} 11. e4 {[%clk 0:02:36]}  Ne7 {[%clk 0:02:14]} 12. Nc3 {[%clk 0:02:31]}  O-O {[%clk 0:02:08]} 13. Rc1 {[%clk 0:02:15]}  a5 {[%clk 0:02:03]} 14. Nb5 {[%clk 0:02:12]}  Be5 {[%clk 0:02:03]} 15. Qxd8 {[%clk 0:02:10]}  Rxd8 {[%clk 0:02:04]} 16. Bb6 {[%clk 0:02:10]}  Rf8 {[%clk 0:01:57]} 17. Bc5 {[%clk 0:01:55]}  Re8 {[%clk 0:01:51]} 18. Nd6 {[%clk 0:01:42]}  Bxd6 {[%clk 0:01:33]} 19. Bxd6 {[%clk 0:01:43]}  axb4 {[%clk 0:01:33]} 20. axb4 {[%clk 0:01:31]}  Bd7 {[%clk 0:01:25]} 21. Bc4 {[%clk 0:01:30]}  Ng6 {[%clk 0:01:01]} 22. Ne2 {[%clk 0:01:29]}  Rec8 {[%clk 0:00:56]} 23. Kf2 {[%clk 0:01:25]}  Ne8 {[%clk 0:00:52]} 24. Bc5 {[%clk 0:00:49]}  Ne5 {[%clk 0:00:51]} 25. Bb3 {[%clk 0:00:47]}  Nd3+ {[%clk 0:00:49]} 26. Ke3 {[%clk 0:00:46]}  Nxc1 {[%clk 0:00:50]} 27. Rxc1 {[%clk 0:00:41]}  Nc7 {[%clk 0:00:42]} 28. Rd1 {[%clk 0:00:37]}  Ba4 {[%clk 0:00:39]} 29. Bxa4 {[%clk 0:00:34]}  Rxa4 {[%clk 0:00:40]} 30. Rd7 {[%clk 0:00:34]}  h6 {[%clk 0:00:23]} 31. Nd4 {[%clk 0:00:28]}  Na6 {[%clk 0:00:18]} 32. Rxb7 {[%clk 0:00:19]}  Nxc5 {[%clk 0:00:19]} 33. bxc5 {[%clk 0:00:20]}  Rxc5 {[%clk 0:00:19]} 34. Rb8+ {[%clk 0:00:17]}  Kh7 {[%clk 0:00:19]} 35. Rb2 {[%clk 0:00:16]}  Rc3+ {[%clk 0:00:19]} 36. Kd2 {[%clk 0:00:16]}  Rca3 {[%clk 0:00:19]} 37. Nc2 {[%clk 0:00:15]}  Ra2 {[%clk 0:00:19]} 38. Rb7 {[%clk 0:00:16]}  Rc4 {[%clk 0:00:18]} 0-1


[Site "https://www.chess.com"]

[Event "Titled Tuesday Blitz February 21 Late 2023"]
[White "Prydun, Andriy"]
[Black "Fiorito, Joaquin"]
[WhiteFideId "14145898"]
[BlackFideId "180173"]
[WhiteElo "2134"]
[BlackElo "2405"]
[Result "1-0"]
[Round "09"]
[TimeControl "180+2"]
[Date "2023.02.21"]
[WhiteClock "0:00:11"]
[BlackClock "0:00:04"]

1. e4 {[%clk 0:03:00]}  c6 {[%clk 0:03:00]} 2. d4 {[%clk 0:02:59]}  d5 {[%clk 0:03:00]} 3. e5 {[%clk 0:03:00]}  Bf5 {[%clk 0:03:00]} 4. Bd3 {[%clk 0:03:01]}  Bxd3 {[%clk 0:02:59]} 5. cxd3 {[%clk 0:03:02]}  e6 {[%clk 0:02:58]} 6. Nc3 {[%clk 0:03:02]}  Qb6 {[%clk 0:02:53]} 7. Nf3 {[%clk 0:02:54]}  Ne7 {[%clk 0:02:54]} 8. Ne2 {[%clk 0:02:49]}  Nf5 {[%clk 0:02:52]} 9. g4 {[%clk 0:02:47]}  Bb4+ {[%clk 0:02:50]} 10. Kf1 {[%clk 0:02:46]}  Ne7 {[%clk 0:02:49]} 11. h4 {[%clk 0:02:44]}  Qd8 {[%clk 0:02:42]} 12. h5 {[%clk 0:02:41]}  Nd7 {[%clk 0:02:39]} 13. h6 {[%clk 0:02:38]}  g6 {[%clk 0:02:38]} 14. Bg5 {[%clk 0:02:25]}  O-O {[%clk 0:02:17]} 15. Ng3 {[%clk 0:02:14]}  f6 {[%clk 0:02:16]} 16. exf6 {[%clk 0:02:10]}  Nxf6 {[%clk 0:02:17]} 17. Ne5 {[%clk 0:02:08]}  Nd7 {[%clk 0:02:04]} 18. Qa4 {[%clk 0:01:54]}  Bd6 {[%clk 0:02:00]} 19. Re1 {[%clk 0:01:46]}  Nxe5 {[%clk 0:01:44]} 20. dxe5 {[%clk 0:01:45]}  Bc5 {[%clk 0:01:05]} 21. Re2 {[%clk 0:01:43]}  b5 {[%clk 0:01:02]} 22. Qc2 {[%clk 0:01:42]}  Bd4 {[%clk 0:00:55]} 23. Rg1 {[%clk 0:01:38]}  Rf7 {[%clk 0:00:42]} 24. Bf6 {[%clk 0:01:35]}  c5 {[%clk 0:00:33]} 25. Qd2 {[%clk 0:01:28]}  Qd7 {[%clk 0:00:31]} 26. Nh5 {[%clk 0:01:26]}  Nc6 {[%clk 0:00:13]} 27. Bg7 {[%clk 0:01:25]}  Qc7 {[%clk 0:00:05]} 28. Nf6+ {[%clk 0:01:20]}  Rxf6 {[%clk 0:00:05]} 29. Bxf6 {[%clk 0:01:14]}  Rf8 {[%clk 0:00:05]} 30. Qg5 {[%clk 0:00:59]}  b4 {[%clk 0:00:05]} 31. Rg2 {[%clk 0:00:49]}  a5 {[%clk 0:00:05]} 32. f4 {[%clk 0:00:50]}  c4 {[%clk 0:00:03]} 33. dxc4 {[%clk 0:00:48]}  dxc4 {[%clk 0:00:04]} 34. f5 {[%clk 0:00:49]}  Qf7 {[%clk 0:00:03]} 35. Rh2 {[%clk 0:00:39]}  Re8 {[%clk 0:00:01]} 36. fxg6 {[%clk 0:00:36]}  Qd7 {[%clk 0:00:02]} 37. Qh5 {[%clk 0:00:30]}  Bxe5 {[%clk 0:00:01]} 38. gxh7+ {[%clk 0:00:17]}  Kxh7 {[%clk 0:00:01]} 39. g5 {[%clk 0:00:11]}  Qd1+ {[%clk 0:00:02]} 40. Kg2 {[%clk 0:00:11]}  Bxf6 {[%clk 0:00:02]} 41. g6+ {[%clk 0:00:11]}  Kh8 {[%clk 0:00:03]} 42. g7+ {[%clk 0:00:11]}  Kg8 {[%clk 0:00:03]} 43. h7+ {[%clk 0:00:10]}  Kxg7 {[%clk 0:00:04]} 44. h8=Q+ {[%clk 0:00:10]}  Rxh8 {[%clk 0:00:04]} 45. Qxh8+ {[%clk 0:00:11]}  Kf7 {[%clk 0:00:05]} 46. Rh7+ {[%clk 0:00:11]}  Bg7 {[%clk 0:00:04]} 47. Qxg7+ {[%clk 0:00:11]}  Ke8 {[%clk 0:00:04]} 48. Rh8# {[%clk 0:00:11]} 1-0


[Site "https://www.chess.com"]

[Event "Titled Tuesday Blitz February 21 Late 2023"]
[White "Coelho, Ramyres Santana"]
[Black "Skvortsov, Andrei"]
[WhiteFideId "2120690"]
[BlackFideId "24108600"]
[WhiteElo "1981"]
[BlackElo "2313"]
[Result "0-1"]
[Round "09"]
[TimeControl "180+2"]
[Date "2023.02.21"]
[WhiteClock "0:01:51"]
[BlackClock "0:02:01"]

1. e4 {[%clk 0:03:00]}  d5 {[%clk 0:02:57]} 2. exd5 {[%clk 0:02:57]}  Qxd5 {[%clk 0:02:57]} 3. Nc3 {[%clk 0:02:57]}  Qe5+ {[%clk 0:02:58]} 4. Be2 {[%clk 0:02:55]}  Bg4 {[%clk 0:02:57]} 5. d4 {[%clk 0:02:48]}  Bxe2 {[%clk 0:02:58]} 6. Qxe2 {[%clk 0:02:49]}  Qxd4 {[%clk 0:02:55]} 7. Be3 {[%clk 0:02:47]}  Qb4 {[%clk 0:02:46]} 8. Rd1 {[%clk 0:02:41]}  e6 {[%clk 0:02:36]} 9. Nf3 {[%clk 0:02:34]}  Nf6 {[%clk 0:02:32]} 10. O-O {[%clk 0:02:31]}  Nbd7 {[%clk 0:02:29]} 11. Nb5 {[%clk 0:02:28]}  Bd6 {[%clk 0:02:20]} 12. Nxd6+ {[%clk 0:02:24]}  cxd6 {[%clk 0:02:19]} 13. c3 {[%clk 0:02:23]}  Qa4 {[%clk 0:02:11]} 14. Rxd6 {[%clk 0:02:21]}  O-O {[%clk 0:02:10]} 15. b3 {[%clk 0:02:18]}  Qe4 {[%clk 0:02:08]} 16. Rfd1 {[%clk 0:02:17]}  Ne5 {[%clk 0:02:04]} 17. Nxe5 {[%clk 0:02:12]}  Qxe5 {[%clk 0:02:04]} 18. Qd2 {[%clk 0:02:09]}  Ne4 {[%clk 0:02:00]} 19. Qd4 {[%clk 0:02:04]}  Qxd6 {[%clk 0:01:59]} 20. Qxd6 {[%clk 0:02:00]}  Nxd6 {[%clk 0:02:00]} 21. Rxd6 {[%clk 0:02:00]}  Rfd8 {[%clk 0:02:01]} 22. Rxd8+ {[%clk 0:01:54]}  Rxd8 {[%clk 0:02:02]} 23. Kf1 {[%clk 0:01:51]}  Rd1+ {[%clk 0:01:59]} 24. Ke2 {[%clk 0:01:51]}  Ra1 {[%clk 0:02:00]} 25. Bxa7 {[%clk 0:01:51]}  Rxa2+ {[%clk 0:02:00]} 26. Kf3 {[%clk 0:01:51]}  Rxa7 {[%clk 0:02:01]} 0-1


[Site "https://www.chess.com"]

[Event "Titled Tuesday Blitz February 21 Late 2023"]
[White "Manelyuk, Daniil"]
[Black "Buganca, Luiz Henrique Da Silva"]
[WhiteFideId "44173920"]
[BlackFideId "2182289"]
[WhiteElo "2302"]
[BlackElo "1920"]
[Result "1-0"]
[Round "09"]
[TimeControl "180+2"]
[Date "2023.02.21"]
[WhiteClock "0:00:58"]
[BlackClock "0:00:20"]

1. e4 {[%clk 0:03:00]}  c5 {[%clk 0:02:54]} 2. Nf3 {[%clk 0:03:00]}  Nc6 {[%clk 0:02:54]} 3. d4 {[%clk 0:02:59]}  cxd4 {[%clk 0:02:55]} 4. Nxd4 {[%clk 0:03:00]}  g6 {[%clk 0:02:56]} 5. c4 {[%clk 0:02:59]}  Bg7 {[%clk 0:02:56]} 6. Be3 {[%clk 0:02:59]}  Nf6 {[%clk 0:02:56]} 7. Nc3 {[%clk 0:02:59]}  O-O {[%clk 0:02:49]} 8. Be2 {[%clk 0:02:57]}  d6 {[%clk 0:02:41]} 9. O-O {[%clk 0:02:56]}  Bd7 {[%clk 0:02:31]} 10. Qd2 {[%clk 0:02:55]}  Rc8 {[%clk 0:02:21]} 11. Rab1 {[%clk 0:02:48]}  Ng4 {[%clk 0:01:49]} 12. Bxg4 {[%clk 0:02:44]}  Bxg4 {[%clk 0:01:48]} 13. Nxc6 {[%clk 0:02:42]}  bxc6 {[%clk 0:01:33]} 14. b4 {[%clk 0:02:13]}  a5 {[%clk 0:01:19]} 15. a3 {[%clk 0:01:36]}  Rb8 {[%clk 0:01:09]} 16. bxa5 {[%clk 0:01:22]}  Qxa5 {[%clk 0:01:08]} 17. Nd5 {[%clk 0:01:20]}  Rxb1 {[%clk 0:00:40]} 18. Nxe7+ {[%clk 0:01:13]}  Kh8 {[%clk 0:00:40]} 19. Qxa5 {[%clk 0:01:10]}  Rxf1+ {[%clk 0:00:37]} 20. Kxf1 {[%clk 0:01:10]}  Rb8 {[%clk 0:00:37]} 21. f3 {[%clk 0:01:09]}  Be6 {[%clk 0:00:37]} 22. Qc7 {[%clk 0:01:05]}  Bxc4+ {[%clk 0:00:27]} 23. Kf2 {[%clk 0:01:04]}  Rb2+ {[%clk 0:00:28]} 24. Kg3 {[%clk 0:01:04]}  Be5+ {[%clk 0:00:22]} 25. f4 {[%clk 0:01:04]}  Rb3 {[%clk 0:00:20]} 26. fxe5 {[%clk 0:00:58]}  Rxe3+ {[%clk 0:00:20]} 27. Kf4 {[%clk 0:00:58]} 1-0


[Site "https://www.chess.com"]